bitfinex-derivatives/quotes_ETHF0:USTF0_20250130
["timestamp","ask_amount","ask_price","bid_price","bid_amount"]
[1738269709233,3.2078,3246.0,3245.6,0.69833]
[1738269709437,3.2078,3246.0,3245.7,0.61603]
[1738269709622,0.616,3245.9,3245.8,0.61602]
[1738269709824,0.61602,3245.8,3245.7,0.61603]
[1738269710023,0.61601,3245.9,3245.8,0.61601]
[1738269710230,0.00462355,3246.2,3245.7,3.2078]
[1738269710430,0.00462355,3246.2,3246.1,0.61596]
[1738269712330,0.00462355,3246.2,3246.1,3.82376]
[1738269712538,0.00462355,3246.2,3246.1,0.61596]
[1738269715536,0.61596,3246.1,3245.8,3.928]
[1738269715835,0.616,3245.9,3245.8,3.82381]
[1738269716036,0.00462355,3246.2,3245.8,3.2078]
[1738269716235,0.616,3245.9,3245.8,3.82381]
[1738269716438,0.00462355,3246.2,3245.8,3.82381]
[1738269716439,0.61599,3246.0,3245.9,0.61599]
[1738269716938,0.616,3245.9,3245.8,3.82382]
[1738269717331,0.616,3245.9,3245.8,3.2078]
[1738269717532,0.616,3245.9,3245.8,3.82382]
[1738269717736,0.616,3245.9,3245.8,3.2078]
[1738269718037,3.2078,3245.9,3245.6,0.69833]
[1738269718237,0.7129,3246.1,3245.6,0.69833]
[1738269718444,0.61604,3245.7,3245.6,1.31438]
[1738269718940,0.61604,3245.7,3245.6,1.31439]
[1738269719340,0.61604,3245.7,3245.6,0.69833]
[1738269719744,0.61604,3245.7,3245.6,1.31439]
[1738269720141,0.61604,3245.7,3245.6,0.69833]
[1738269720835,3.08049,3245.5,3244.2,0.7276]
[1738269721034,0.61628,3244.5,3244.3,0.61629]
[1738269721342,0.61628,3244.5,3244.4,0.61629]
[1738269721539,3.2078,3244.5,3243.2,3.2102903]
[1738269721738,0.6165,3243.3,3243.1,0.61652]
[1738269721940,0.6165,3243.3,3242.8,3.2102903]
[1738269721941,3.2078,3243.4,3243.2,0.61651]
[1738269722141,3.82429,3243.4,3243.2,0.61651]
[1738269722444,3.82429,3243.4,3243.0,0.00462355]
[1738269722445,3.2078,3243.4,3243.0,0.00462355]
[1738269722646,0.6165,3243.3,3243.1,0.61653]
[1738269722945,3.2078,3243.4,3243.2,0.61651]
[1738269723143,3.2078,3243.4,3243.0,0.00462355]
[1738269723346,0.61668,3242.4,3242.1,0.61671]
[1738269723641,3.2078,3242.5,3241.6,3.2078]
[1738269723840,3.2078,3242.0,3241.7,0.61679]
[1738269724043,3.2078,3242.0,3241.6,3.2078]
[1738269724238,3.2078,3242.4,3241.6,3.2078]
[1738269724543,0.7341,3242.7,3242.6,0.61663]
[1738269724742,3.2078,3242.8,3242.6,0.61661]
[1738269725048,0.00462355,3242.3,3242.2,0.61671]
[1738269725539,3.2078,3243.2,3242.1,1.5129]
[1738269725738,0.61656,3243.0,3242.7,0.6166]
[1738269726441,0.61656,3243.0,3242.4,3.2078]
[1738269726442,3.2078,3242.8,3242.5,0.61665]
[1738269726648,3.2078,3242.8,3241.8,3.2078]
[1738269726843,3.2078,3242.4,3241.8,3.2078]
[1738269727344,3.2078,3242.0,3241.7,0.00462355]
[1738269727539,0.6167,3242.3,3241.9,0.61676]
[1738269727740,3.2078,3242.4,3241.7,0.00462355]
[1738269727942,3.2078,3242.4,3242.3,0.61669]
[1738269728445,3.2078,3242.4,3241.8,0.7747]
[1738269728639,3.2078,3242.4,3241.9,0.61676]
[1738269729057,0.61677,3241.9,3241.7,0.00462355]
[1738269729339,3.2078,3242.0,3241.7,0.00462355]
[1738269729545,0.61677,3241.9,3241.7,0.00462355]
[1738269730046,0.61678,3241.8,3241.7,0.00462355]
[1738269730348,0.61678,3241.9,3241.7,0.00462355]
[1738269730540,3.2078,3242.0,3241.7,0.00462355]
[1738269730747,0.61677,3241.9,3241.7,0.00462355]
[1738269730940,3.2078,3242.0,3241.8,0.61678]
[1738269731344,3.2078,3242.0,3241.7,0.00462355]
[1738269731739,0.61678,3241.8,3241.7,0.00462355]
[1738269732148,0.61677,3241.9,3241.7,0.00462355]
[1738269732649,3.2078,3242.0,3241.7,0.00462355]
[1738269732851,0.61678,3241.9,3241.7,0.00462355]
[1738269733047,3.2078,3242.0,3241.8,0.61678]
[1738269733250,3.2078,3242.0,3241.7,0.00462355]
[1738269733251,0.61676,3241.9,3241.7,0.00462355]
[1738269733749,3.2078,3242.0,3241.7,0.00462355]
[1738269733941,0.61678,3241.9,3241.7,0.00462355]
[1738269734142,3.2078,3242.0,3241.9,0.61676]
[1738269734343,3.2078,3242.0,3241.7,0.00462355]
[1738269734543,3.82455,3242.0,3241.7,0.62142355]
[1738269735040,0.61676,3241.9,3241.5,0.61683]
[1738269735347,3.2078,3242.0,3241.0,3.2078]
[1738269735655,3.2078,3242.0,3241.1,1.5423]
[1738269735843,3.2078,3242.0,3241.9,0.61676]
[1738269736044,0.7477,3242.3,3241.5,3.2078]
[1738269736349,3.2078,3242.6,3242.5,0.61665]
[1738269736645,3.71263556,3244.0,3242.7,0.6166]
[1738269736646,0.61657,3242.9,3242.7,0.6166]
[1738269736946,3.2078,3243.0,3242.9,0.11657]
[1738269737152,3.2078,3243.4,3243.1,0.61653]
[1738269737354,3.82429,3243.4,3243.1,0.61653]
[1738269737645,0.62114355,3243.2,3243.0,0.61654]
[1738269738151,0.00462355,3243.2,3243.0,0.61654]
[1738269738449,0.61654,3243.1,3242.9,0.61657]
[1738269738652,0.00462355,3243.2,3242.4,0.7165]
[1738269738848,0.00462355,3243.2,3243.1,0.61653]
[1738269739050,0.00462355,3243.2,3243.1,3.82433]
[1738269739649,3.55e-06,3243.2,3243.1,3.82433]
[1738269740548,3.2078,3244.6,3243.6,1.54108]
[1738269740745,3.82406,3244.6,3243.6,1.54108]
[1738269740942,3.2078,3244.6,3243.7,0.726]
[1738269741154,3.2078,3244.6,3244.5,0.61627]
[1738269741655,3.2078,3244.6,3243.9,1.54096]
[1738269741848,3.2078,3244.6,3244.5,0.61627]
[1738269742553,0.00462355,3244.9,3244.8,0.61621]
[1738269745847,3.2078,3246.2,3244.8,5.0]
[1738269746052,3.2078,3246.6,3245.7,3.71263556]
[1738269746250,3.2078,3246.6,3246.5,0.61589]
[1738269746559,0.61582,3246.9,3246.0,1.53996]
[1738269746753,0.61582,3246.9,3246.6,0.61586]
[1738269747059,3.2078,3246.7,3246.2,0.61595]
[1738269747259,3.2078,3246.7,3246.1,0.00462355]
[1738269747260,3.2078,3246.7,3246.6,0.61587]
[1738269748058,3.2078,3246.7,3246.5,0.61589]
[1738269748358,3.2078,3246.7,3246.6,0.61587]
[1738269748759,0.00462355,3246.8,3246.6,0.61587]
[1738269749961,0.00462355,3246.8,3246.3,3.2078]
[1738269750158,0.00462355,3246.8,3246.7,3.82365]
[1738269751355,0.00462355,3246.8,3246.7,3.2078]
[1738269751559,0.00462355,3246.8,3246.7,3.82365]
[1738269751761,0.00462355,3246.8,3246.7,3.2078]
[1738269751960,0.62045355,3246.8,3246.7,3.2078]
[1738269754662,0.00462355,3246.8,3246.3,3.2078]
[1738269754856,0.61589,3246.5,3246.3,3.2078]
[1738269755367,0.00462355,3246.8,3246.3,3.2078]
[1738269755865,0.61591,3246.4,3246.3,3.2078]
[1738269756567,0.00462355,3246.8,3246.3,3.2078]
[1738269756865,0.61591,3246.4,3246.3,3.2078]
[1738269757170,0.61586,3246.7,3246.5,0.61588]
[1738269757472,0.61586,3246.7,3246.6,0.61587]
[1738269757764,0.61586,3246.7,3246.5,0.61588]
[1738269758067,0.00462355,3246.8,3246.3,3.2078]
[1738269758269,0.00462355,3246.8,3246.3,3.82373]
[1738269758459,0.00462355,3246.8,3246.4,0.61591]
[1738269758661,0.61589,3246.5,3246.4,3.82228268]
[1738269758860,0.61589,3246.5,3246.4,3.20637268]
[1738269759060,0.61588,3246.6,3246.5,0.61588]
[1738269759257,0.00462355,3246.8,3246.4,3.20637268]
[1738269759457,0.62045355,3246.8,3246.7,0.61585]
[1738269759660,0.61585,3246.7,3246.6,0.61586]
[1738269759860,0.61585,3246.7,3246.4,3.20637268]
[1738269759861,0.00462355,3246.8,3246.3,3.2078]
[1738269760071,0.61591,3246.4,3246.3,3.2078]
[1738269760273,0.61595,3246.2,3246.1,0.00462355]
[1738269763371,3.82375,3246.2,3246.1,0.00462355]
[1738269764060,3.82375,3246.2,3246.1,3.55e-06]
[1738269764473,9.90975,3246.2,3246.1,3.55e-06]
[1738269765160,0.61627,3244.5,3244.4,3.20637268]
[1738269766165,3.2078,3244.7,3244.0,3.20637268]
[1738269766367,3.2078,3244.7,3243.9,0.61638]
[1738269766368,0.61633,3244.2,3244.1,0.00462355]
[1738269767566,3.2078,3244.7,3244.1,0.00462355]
[1738269767967,0.61633,3244.2,3244.1,0.00462355]
[1738269768175,0.61633,3244.2,3244.1,0.62096355]
[1738269768378,0.61633,3244.2,3244.1,0.00462355]
[1738269769264,0.61633,3244.2,3244.1,3.55e-06]
[1738269769473,6.57043,3244.2,3244.1,3.55e-06]
[1738269770163,7.49933,3244.2,3244.1,3.55e-06]
[1738269772470,7.49933,3244.2,3241.9,1.17460812]
[1738269772471,3.08232,3243.5,3242.0,3.20637268]
[1738269772777,0.61672,3242.2,3242.0,3.20637268]
[1738269772969,3.2078,3242.4,3242.0,3.20637268]
[1738269773278,0.61672,3242.2,3241.9,1.54036]
[1738269773573,3.2078,3242.4,3241.9,1.54036]
[1738269773574,3.21242355,3242.4,3242.1,0.61671]
[1738269773777,3.82910355,3242.4,3242.1,0.61673]
[1738269773971,3.21242355,3242.4,3242.0,3.20637268]
[1738269774374,3.21242355,3242.4,3242.2,0.6167]
[1738269774673,3.21242355,3242.4,3241.9,0.9236]
[1738269774867,0.00462355,3242.4,3242.3,0.61669]
[1738269776364,3.2078,3242.8,3242.7,0.61661]
[1738269776579,3.2078,3243.2,3242.4,3.2078]
[1738269776773,0.61657,3243.0,3242.8,0.61659]
[1738269777177,3.2078,3243.2,3242.4,3.2078]
[1738269777375,3.2078,3243.2,3241.9,2.46547]
[1738269777376,3.2078,3242.8,3242.0,3.2078]
[1738269777773,0.61668,3242.4,3242.2,0.61669]
[1738269778273,3.2078,3242.8,3242.0,3.2078]
[1738269778478,0.61673,3242.1,3242.0,3.2078]
[1738269778779,3.2078,3242.4,3242.0,3.2078]
[1738269778976,0.61671,3242.2,3242.1,0.61672]
[1738269779378,3.2078,3242.4,3241.9,0.9236]
[1738269779579,0.61666,3242.5,3242.3,0.61669]
[1738269779874,0.61664,3242.6,3241.9,0.9236]
[1738269780075,0.61662,3242.7,3242.6,0.61663]
[1738269780269,3.2078,3242.8,3242.0,0.61674]
[1738269780470,0.61663,3242.6,3242.5,0.61664]
[1738269780782,3.2078,3242.8,3242.4,0.00309648]
[1738269781080,3.2078,3242.8,3242.5,0.61664]
[1738269781272,3.2078,3242.8,3242.4,0.00309648]
[1738269781469,0.61665,3242.5,3242.4,0.00309648]
[1738269781883,0.61662,3242.7,3242.6,0.61662]
[1738269782178,3.2078,3242.8,3242.4,0.00309648]
[1738269782382,3.2078,3242.8,3242.7,0.61661]
[1738269784486,0.61665,3242.5,3242.4,0.61975648]
[1738269784782,3.2078,3242.8,3242.4,0.61975648]
[1738269784783,3.8244,3242.8,3242.7,0.61661]
[1738269784982,3.8244,3242.8,3242.4,0.00309648]
[1738269784983,3.2078,3242.8,3242.4,0.00309648]
[1738269785181,0.61665,3242.5,3242.4,0.00309648]
[1738269787376,0.9109,3242.7,3242.4,0.00309648]
[1738269787570,0.61665,3242.6,3242.5,0.61664]
[1738269787776,0.61665,3242.5,3242.4,0.00309648]
[1738269788177,0.61665,3242.5,3242.4,0.61976648]
[1738269788377,0.61665,3242.5,3242.4,0.00309648]
[1738269790796,0.61665,3242.5,3242.4,0.61976648]
[1738269790988,3.2078,3242.8,3242.4,0.00309648]
[1738269791383,0.61662,3242.7,3242.6,0.61661]
[1738269792093,3.2078,3242.8,3242.4,0.00309648]
[1738269792392,0.61665,3242.5,3242.4,0.00309648]
[1738269793484,0.61665,3242.5,3242.4,0.61976648]
[1738269793887,0.61664,3242.6,3242.5,0.61664]
[1738269794095,0.61663,3242.7,3242.6,0.61661]
[1738269794490,3.2078,3242.8,3242.4,0.00309648]
[1738269794798,0.61665,3242.6,3242.5,0.61664]
[1738269795782,3.2078,3242.8,3242.4,1.54474648]
[1738269795983,0.00462355,3243.1,3242.7,0.61661]
[1738269796191,0.00462355,3243.1,3243.0,0.61655]
[1738269796390,0.00462355,3243.1,3242.6,0.6166]
[1738269796585,0.00462355,3243.1,3242.4,0.00309648]
[1738269796586,0.61665,3242.5,3242.4,0.00309648]
[1738269796786,0.61664,3242.6,3242.5,0.61663]
[1738269797394,0.61663,3242.7,3242.6,0.61662]
[1738269797591,3.2078,3242.8,3242.4,0.00309648]
[1738269797787,3.2078,3242.8,3242.7,0.61661]
[1738269798383,0.61665,3242.5,3242.4,0.00309648]
[1738269801288,0.61665,3242.5,3242.4,0.61976648]
[1738269801487,3.2078,3242.8,3242.7,0.61661]
[1738269801687,3.2078,3242.8,3242.4,0.00309648]
[1738269801892,0.61664,3242.7,3242.6,0.61661]
[1738269802492,0.6166,3242.8,3242.7,0.61661]
[1738269803295,0.00462355,3243.1,3242.8,0.61656]
[1738269803296,0.61659,3242.9,3242.8,0.61656]
[1738269803490,0.00462355,3243.1,3243.0,0.61655]
[1738269803897,0.62115355,3243.1,3243.0,0.61655]
[1738269804398,0.00462355,3243.1,3242.6,0.8831]
[1738269804600,0.61659,3242.9,3242.8,0.61658]
[1738269804797,0.00462355,3243.1,3242.6,0.8831]
[1738269805097,0.00462355,3243.1,3242.9,0.61656]
[1738269805098,0.61658,3243.0,3242.9,0.61656]
[1738269805587,0.61661,3242.8,3242.7,0.6166]
[1738269805803,0.61661,3242.8,3242.7,0.61658]
[1738269805997,0.61661,3242.7,3242.6,0.61662]
[1738269806195,0.61665,3242.6,3242.5,0.61664]
[1738269806492,1.54142,3243.0,3242.4,3.21089648]
[1738269806493,0.61665,3242.5,3242.4,0.00309648]
[1738269808301,0.61678,3241.8,3241.7,0.00462355]
[1738269810194,3.2078,3242.0,3241.9,0.61676]
[1738269811599,0.61678,3241.8,3241.7,0.00462355]
[1738269820509,0.61678,3241.8,3241.7,0.62142355]
[1738269820706,0.61678,3241.8,3241.7,0.00462355]
[1738269820905,3.2078,3242.0,3241.6,0.61681]
[1738269820906,0.6168,3241.7,3241.6,0.61681]
[1738269821102,0.61684,3241.6,3241.5,0.61683]
[1738269821301,3.82464,3241.6,3241.5,0.61683]
[1738269821612,0.61688,3241.4,3241.3,0.61686]
[1738269821906,4.74988,3241.6,3240.9,0.9119]
[1738269822109,0.61692,3241.1,3241.0,0.62154355]
[1738269822406,0.61692,3241.1,3240.0,17.4638]
[1738269822616,4.75038,3240.6,3239.8,1.8697]
[1738269822913,3.2078,3240.2,3239.8,1.8697]
[1738269823217,3.8249,3240.2,3240.1,0.61711]
[1738269823506,3.82489,3240.2,3240.1,0.61711]
[1738269824104,3.2078,3240.2,3239.8,1.8697]
[1738269824304,3.2078,3240.2,3240.0,0.61711]
[1738269824505,3.2078,3240.2,3239.8,1.8697]
[1738269824709,0.61711,3240.1,3240.0,0.61712]
[1738269824905,3.2078,3240.2,3240.1,0.61711]
[1738269825108,3.2078,3240.2,3239.8,1.8697]
[1738269825109,3.2078,3240.6,3240.3,0.61705]
[1738269825310,0.6171,3240.2,3240.1,0.61708]
[1738269825505,0.61712,3240.1,3240.0,0.61711]
[1738269825813,3.8249,3240.2,3240.1,0.61711]
[1738269826309,3.2078,3240.2,3239.8,1.8697]
[1738269826509,0.61711,3240.1,3240.0,0.61712]
[1738269826706,3.2078,3240.2,3239.8,0.9276]
[1738269827020,3.2078,3240.2,3240.1,0.61711]
[1738269827305,3.82489,3240.2,3240.1,0.61711]
[1738269827512,0.61712,3240.1,3240.0,0.61711]
[1738269827811,3.2078,3240.2,3239.8,0.9276]
[1738269828022,0.61712,3240.1,3240.0,0.61711]
[1738269828409,0.61714,3239.9,3239.8,1.54476]
[1738269828606,0.61714,3239.9,3239.8,0.9276]
[1738269828807,0.61712,3240.1,3239.8,0.9276]
[1738269829011,3.2078,3240.2,3239.8,0.9276]
[1738269829215,0.61714,3239.9,3239.8,1.54475]
[1738269829407,3.2078,3240.2,3239.8,0.9276]
[1738269829714,3.2078,3240.2,3240.0,0.61711]
[1738269829916,3.2078,3240.2,3239.8,0.9276]
[1738269830120,3.2078,3240.2,3240.1,0.61711]
[1738269832616,3.2078,3240.2,3239.9,0.61713]
[1738269832617,3.8249,3240.2,3239.9,0.61713]
[1738269832912,3.2078,3240.2,3239.4,2.42066]
[1738269833117,3.2078,3239.8,3239.5,0.61721]
[1738269833319,3.2078,3239.8,3239.6,0.6172]
[1738269833506,3.2078,3239.8,3239.1,0.9172]
[1738269834013,3.2078,3239.8,3239.6,0.6172]
[1738269834209,3.2078,3239.8,3239.1,0.9172]
[1738269834717,3.2078,3239.8,3239.7,0.61718]
[1738269835017,3.2078,3239.8,3239.5,0.6172]
[1738269835212,3.2078,3239.8,3239.1,0.9172]
[1738269835414,3.2078,3239.8,3239.6,0.6172]
[1738269835716,3.2078,3239.8,3239.7,0.61718]
[1738269836911,3.2078,3239.8,3239.6,0.61719]
[1738269837312,3.82498,3239.8,3239.6,0.61719]
[1738269837915,0.61725,3239.4,3239.2,0.61726]
[1738269838111,4.75072,3239.8,3239.1,0.9172]
[1738269838314,4.75072,3239.8,3239.3,0.61725]
[1738269838315,3.2078,3239.4,3239.3,0.61725]
[1738269838515,3.82504,3239.4,3238.9,1.54331]
[1738269838715,3.2078,3239.4,3239.3,0.61726]
[1738269840412,0.61727,3239.3,3239.1,0.61729]
[1738269840615,3.2078,3239.4,3239.3,0.61726]
[1738269840915,3.2078,3239.8,3239.7,0.61718]
[1738269842118,0.00462355,3240.0,3239.9,0.61714]
[1738269844814,3.2078,3241.0,3240.2,0.61709]
[1738269845014,3.82474,3241.0,3240.9,0.61694]
[1738269845320,3.82474,3241.0,3240.9,0.11694]
[1738269845515,0.61695,3240.9,3240.6,0.617]
[1738269845715,0.61696,3240.9,3240.8,0.61696]
[1738269845919,3.2078,3241.0,3240.5,0.00463083]
[1738269846227,3.2078,3240.6,3240.5,0.62166083]
[1738269851124,3.82481,3240.6,3240.5,0.62166083]
[1738269853021,3.2078,3240.6,3240.5,0.62166083]
[1738269853225,3.82481,3240.6,3240.5,0.62166083]
[1738269853828,3.2078,3240.6,3240.5,0.62166083]
[1738269854427,1.7598,3240.6,3240.5,0.62166083]
[1738269854725,3.2078,3242.3,3240.9,3.08478]
[1738269855024,0.61673,3242.1,3241.6,0.61682]
[1738269855218,0.6168,3241.7,3241.5,3.82463]
[1738269855422,3.2078,3241.8,3241.1,3.2078]
[1738269855726,3.2078,3241.8,3241.0,1.54231]
[1738269856026,3.21243083,3241.8,3241.6,0.61681]
[1738269856226,3.21243083,3241.8,3241.7,0.6168]
[1738269856529,0.61681,3241.7,3241.5,0.61682]
[1738269856727,3.82922083,3241.8,3241.2,3.21986148]
[1738269856929,3.82922083,3241.8,3241.7,0.6168]
[1738269857128,3.21243083,3241.8,3241.2,3.21986148]
[1738269857328,3.82922083,3241.8,3241.6,0.6168]
[1738269857530,3.21243083,3241.8,3241.2,3.21986148]
[1738269857720,3.21243083,3241.8,3241.7,0.6168]
[1738269857923,3.21243083,3241.8,3241.0,3.2078]
[1738269858321,0.61688,3241.4,3241.2,0.61689]
[1738269858521,0.9366,3241.3,3241.2,0.61689]
[1738269858726,4.1444,3241.3,3240.5,3.21243083]
[1738269859028,0.9168,3241.2,3241.0,0.61692]
[1738269859228,1.53371,3241.2,3241.0,0.61692]
[1738269859533,1.53371,3241.2,3240.5,3.21243083]
[1738269859534,0.9168,3241.2,3240.5,0.00463083]
[1738269859727,3.82481,3240.6,3240.5,0.00463083]
[1738269859932,0.61703,3240.5,3239.7,3.2078]
[1738269860134,0.9449,3240.5,3240.1,0.6171]
[1738269860323,3.2078,3240.2,3239.7,3.2078]
[1738269860526,3.82489,3240.2,3240.0,0.61712]
[1738269860730,3.2078,3240.2,3239.7,3.2078]
[1738269860926,0.61706,3240.4,3240.2,0.61708]
[1738269861126,0.9449,3240.5,3240.1,0.6171]
[1738269861328,3.2078,3240.2,3239.7,3.2078]
[1738269861625,3.2078,3240.2,3239.8,0.61715]
[1738269861930,3.2078,3240.2,3239.9,0.61714]
[1738269862132,0.61711,3240.1,3239.9,0.61714]
[1738269862440,3.2078,3240.2,3239.7,3.2078]
[1738269862734,0.61713,3240.0,3239.8,0.61715]
[1738269862921,3.8249,3240.2,3239.8,0.61716]
[1738269863125,0.61711,3240.1,3239.9,0.61713]
[1738269863425,0.61711,3240.1,3239.9,0.11713]
[1738269863625,3.2078,3240.2,3239.7,3.2078]
[1738269864130,0.61711,3240.1,3239.9,0.61713]
[1738269864329,3.2078,3240.2,3239.7,3.2078]
[1738269865044,0.61714,3240.0,3239.8,0.61716]
[1738269865335,0.61718,3239.7,3239.6,0.00463083]
[1738269866034,1.58178,3239.7,3239.6,0.00463083]
[1738269867235,0.6173,3239.1,3239.0,2.65736876]
[1738269867437,1.54301,3239.6,3238.5,3.2078]
[1738269867438,2.65736876,3239.2,3238.5,3.2078]
[1738269867631,0.61739,3238.6,3238.5,3.2078]
[1738269868042,5.86516876,3238.9,3237.8,2.65736876]
[1738269868234,3.2078,3238.5,3237.8,2.65736876]
[1738269868537,0.61743,3238.4,3238.1,0.61747]
[1738269868834,3.2078,3238.5,3237.7,3.2078]
[1738269869040,0.61745,3238.4,3237.8,0.61754]
[1738269869241,3.2078,3238.5,3236.0,4.56656084]
[1738269869242,3.2078,3237.5,3236.0,4.56656084]
[1738269869441,0.61852,3232.7,3232.6,6.62545585]
[1738269869736,0.61852,3232.7,3231.6,6.17840355]
[1738269869737,7.5678,3232.7,3231.6,6.17840355]
[1738269869931,7.5678,3232.7,3231.1,60.15699103]
[1738269869932,0.61874,3231.6,3231.1,60.15699103]
[1738269870131,3.2078,3231.7,3231.1,29.01958536]
[1738269870333,3.22399677,3231.2,3231.1,28.71058536]
[1738269870532,3.74135961,3231.2,3231.1,41.91838536]
[1738269870842,3.74135961,3231.8,3231.1,38.71058536]
[1738269871143,3.74135961,3231.8,3231.2,40.8]
[1738269871441,3.74135961,3231.8,3231.3,14.269]
[1738269871737,3.2078,3232.2,3231.3,14.269]
[1738269872239,3.2078,3231.6,3231.3,14.269]
[1738269872636,3.2078,3231.6,3231.1,28.71058536]
[1738269872941,3.2078,3232.2,3231.5,3.2078]
[1738269873327,3.2078,3231.8,3231.3,0.61878]
[1738269873536,0.61863,3232.2,3231.3,0.61879]
[1738269873837,3.2078,3232.3,3231.1,31.91838536]
[1738269874040,3.2078,3232.9,3231.9,3.2078]
[1738269874342,15.02308864,3233.3,3232.5,3.2078]
[1738269874540,0.6184,3233.3,3232.5,3.2078]
[1738269874738,3.74135961,3233.4,3233.0,2.7078]
[1738269874940,0.61842,3233.3,3233.0,3.2078]
[1738269875139,3.74135961,3233.4,3233.0,2.7109]
[1738269875339,0.00464016,3233.5,3233.0,2.7109]
[1738269875841,0.00464016,3233.5,3233.4,3.2078]
[1738269876140,0.00464016,3233.5,3233.4,3.82618]
[1738269876341,0.00464016,3233.5,3233.4,10.61838]
[1738269876842,1e-08,3233.7,3233.6,0.61835]
[1738269877045,1e-08,3233.7,3233.6,5.61835]
[1738269877244,1e-08,3233.7,3233.6,5.93035]
[1738269878246,1e-08,3233.7,3233.6,20.21535]
[1738269878546,1e-08,3233.7,3233.6,5.93035]
[1738269878746,0.00464016,3234.0,3233.9,0.61829]
[1738269878942,0.00464016,3234.0,3233.9,3.82609]
[1738269880248,4.64560347,3234.0,3233.9,3.2078]
[1738269880450,5.26387347,3234.0,3233.9,3.2078]
[1738269880952,4.64560347,3234.0,3233.9,3.2078]
[1738269881147,0.00464016,3234.0,3233.7,3.2078]
[1738269882543,3.93211455,3234.0,3233.7,3.2078]
[1738269882849,3.93211455,3234.0,3233.6,0.61833]
[1738269883446,3.93211455,3234.0,3233.9,0.61829]
[1738269884345,0.00464016,3234.0,3233.8,3.2078]
[1738269884649,0.00464016,3234.0,3233.5,6.7842009]
[1738269884650,0.00464016,3234.0,3233.9,14.90929]
[1738269885249,2.30388313,3234.1,3234.0,0.61827]
[1738269885851,6.94484644,3234.1,3233.9,14.291]
[1738269886153,3.2078,3234.0,3233.9,14.291]
[1738269886648,7.84876331,3234.0,3233.9,9.3642569]
[1738269889659,0.00464016,3234.3,3234.2,0.61823]
[1738269890649,0.61812,3234.8,3234.2,3.2078]
[1738269890847,6.94915961,3235.0,3234.2,3.2078]
[1738269891048,0.61812,3234.8,3234.4,0.61818]
[1738269891258,6.94915961,3235.0,3234.2,3.2078]
[1738269891643,0.61811,3234.9,3234.2,3.2078]
[1738269891859,6.94915961,3235.0,3234.2,3.2078]
[1738269892048,0.00464016,3234.9,3234.2,14.292]
[1738269892249,0.00464016,3234.9,3234.6,0.61815]
[1738269892546,0.00464016,3234.9,3234.6,0.61814]
[1738269892748,4.64560347,3234.9,3234.2,14.292]
[1738269892948,3.82596,3234.6,3234.3,0.6182]
[1738269893250,3.2078,3234.6,3234.3,0.6182]
[1738269893647,3.82596,3234.6,3234.2,14.29664016]
[1738269893852,3.2078,3234.6,3234.2,14.29664016]
[1738269894155,7.84876331,3234.6,3234.2,14.29664016]
[1738269894849,0.61821,3234.3,3234.2,13.79664016]
[1738269895351,5.25917331,3234.3,3234.2,13.79664016]
[1738269900156,5.25917331,3234.3,3234.2,0.00464016]
[1738269900354,5.25917331,3234.3,3232.5,0.9361]
[1738269900355,3.09119,3234.2,3232.5,0.9361]
[1738269900658,0.61849,3232.9,3232.7,0.61852]
[1738269901052,3.2078,3233.0,3232.5,0.9361]
[1738269901254,3.2078,3233.0,3232.9,0.61848]
[1738269901751,7.84876315,3233.0,3232.9,0.61848]
[1738269902057,0.00464016,3233.1,3233.0,0.61846]
[1738269902256,0.00464016,3233.1,3233.0,3.82626]
[1738269902456,3.2078,3234.0,3233.9,0.61829]
[1738269903351,7.84876315,3234.0,3233.0,3.2078]
[1738269903555,0.61837,3233.5,3233.3,0.6184]
[1738269903746,0.61841,3233.3,3233.1,0.61843]
[1738269903949,3.2078,3233.6,3232.5,4.1439]
[1738269904151,3.82623,3233.2,3233.0,0.61846]
[1738269904354,3.2078,3233.2,3232.5,4.1439]
[1738269904563,3.2078,3232.8,3232.7,0.61852]
[1738269905261,3.2078,3232.8,3231.9,3.09334]
[1738269905262,7.84876315,3232.8,3231.6,14.294]
[1738269905557,7.84876315,3232.8,3232.1,0.61862]
[1738269905558,0.61856,3232.5,3232.1,0.61862]
[1738269905861,0.61856,3232.5,3232.2,0.61861]
[1738269906063,5.25952315,3232.5,3232.3,0.61859]
[1738269906361,5.25952315,3232.5,3231.6,14.294]
[1738269906560,5.25952315,3232.5,3231.7,0.6187]
[1738269906756,6.18740315,3232.5,3231.6,14.294]
[1738269907060,3.2078,3231.9,3231.8,0.61869]
[1738269907657,0.6187,3231.8,3231.7,0.6187]
[1738269907860,0.61871,3231.7,3231.6,14.294]
[1738269908265,5.25967315,3231.7,3231.6,14.294]
[1738269908960,3.2078,3231.9,3231.8,0.61869]
[1738269909265,3.2078,3231.9,3231.6,14.294]
[1738269909266,7.84876315,3231.9,3231.7,0.61871]
[1738269909460,3.2078,3231.9,3231.8,0.61869]
[1738269910561,0.00464016,3232.2,3232.1,0.61863]
[1738269910872,3.92771571,3232.5,3232.4,0.61858]
[1738269911057,4.61785603,3232.8,3232.4,0.61858]
[1738269911253,5.77232004,3233.1,3232.7,3.82632]
[1738269911462,3.2078,3232.9,3231.7,3.2078]
[1738269911661,3.2078,3232.9,3232.8,0.6185]
[1738269912058,0.00464016,3233.2,3232.8,0.6185]
[1738269912364,0.00464016,3233.2,3233.1,0.61844]
[1738269913056,0.61846,3233.1,3232.9,0.61847]
[1738269913260,3.2078,3233.0,3232.9,0.61847]
[1738269913463,0.00464016,3233.2,3233.1,0.61844]
[1738269914164,5.83926855,3233.9,3233.4,1.54597]
[1738269914466,5.83926855,3233.9,3233.8,0.61831]
[1738269914660,5.83926855,3233.9,3233.8,14.91431]
[1738269914967,2.94366855,3233.9,3233.8,19.91431]
[1738269915261,8.55e-06,3233.9,3233.8,19.91431]